fUSD/lending_fUSD_20251028
["ID","MTS","AMOUNT","RATE_DAILY","PERIOD"]
[392558130,1761662960332,-150.0,0.00026975,2]
[392558152,1761663031685,-186.48938244,0.00027445,2]
[392558153,1761663031698,-152.0,0.00027766,3]
[392558154,1761663031708,-2000.0,0.00028,2]
[392558155,1761663031718,-243.41,0.00028632,2]
[392558156,1761663031728,-709.15112623,0.000287,2]
[392558157,1761663031738,-152.31800453,0.000289,2]
[392558158,1761663031748,-163.7,0.00028946,2]
[392558159,1761663031757,-2000.0,0.00029,2]
[392558160,1761663031767,-537.0,0.00029017,2]
[392558161,1761663031777,-300.0,0.00029017,2]
[392558162,1761663031787,-300.0,0.00029017,2]
[392558163,1761663031796,-1200.0,0.00029017,2]
[392558164,1761663031806,-500.0,0.00029019,7]
[392558165,1761663031815,-600.0,0.00029019,7]
[392558166,1761663031825,-157.04,0.00029019,2]
[392558167,1761663031835,-500.0,0.00029125,2]
[392558168,1761663031844,-250.0,0.00029312,2]
[392558169,1761663031854,-157.04,0.00029316,2]
[392558170,1761663031865,-19777.01815516,0.0002933,2]
[392558171,1761663031911,-4527.93607585,0.0002933,2]
[392558172,1761663031958,-221.46263129,0.0002933,2]
[392558173,1761663031968,-111.93499226,0.0002933,2]
[392558174,1761663032008,-73.50821894,0.0002933,2]
[392558175,1761663032018,-3116.5078359,0.0002933,2]
[392558176,1761663032028,-1397.5851042,0.0002933,2]
[392558177,1761663032039,-174.4113902,0.0002933,2]
[392558178,1761663032049,-152.0,0.0002958,4]
[392558180,1761663032058,-162.92571,0.0002959,2]
[392558182,1761663032068,-157.04,0.00029613,2]
[392558184,1761663032078,-601.64,0.00029673,2]
[392558186,1761663032088,-2589.83912392,0.0002969,2]
[392558187,1761663032100,-320.09599804,0.0002969,2]
[392558189,1761663032112,-1142.5414,0.000297,2]
[392558191,1761663032121,-3108.61445341,0.000297,2]
[392558193,1761663032131,-243.41,0.00029706,2]
[392558196,1761663032141,-1593.0,0.0002973,2]
[392558198,1761663032151,-904.0,0.0002973,2]
[392558200,1761663032161,-1054.672,0.0002973,2]
[392558201,1761663032171,-216.9840124,0.00029766,2]
[392558204,1761663032180,-500.0,0.00029773,5]
[392558205,1761663032189,-500.0,0.00029773,2]
[392558207,1761663032199,-177.07164167,0.00029789,2]
[392558210,1761663032208,-188.34118562,0.00029789,2]
[392558212,1761663032218,-368.47592489,0.00029789,2]
[392558214,1761663032227,-423.51791763,0.00029789,3]
[392558215,1761663032236,-506.33701392,0.00029789,3]
[392558217,1761663032247,-500.0,0.00029789,3]
[392558220,1761663032257,-500.0,0.00029789,3]
[392558222,1761663032266,-500.0,0.00029789,3]
[392558224,1761663032275,-101545.28359394,0.0002979,3]
[392558236,1761663037569,-403.89065336,0.00029194,5]
[392558237,1761663037579,-7772.25530664,0.0002979,3]
[392558238,1761663037818,-564.4576949,0.0002979,3]
[392558272,1761663039749,-398.39377969,0.0002979,3]
[392558278,1761663039793,-11470.0,0.0002979,3]
[392558279,1761663039832,-957.97619705,0.0002979,3]
[392558280,1761663039875,-1151.82420907,0.0002979,3]
[392558281,1761663040106,-54718.08298827,0.0002979,3]
[392558282,1761663040121,-3167.99999968,0.0002979,3]
[392558290,1761663042772,-457.90955955,0.0002979,3]
[392558291,1761663042877,-1419.72161845,0.0002979,3]
[392558292,1761663042888,-267.5619357,0.0002979,3]
[392558293,1761663042988,-11625.33058376,0.0002979,3]
[392558294,1761663043004,-15133.7426183,0.0002979,3]
[392558295,1761663043015,-179569.34785479,0.0002979,3]
[392558306,1761663045665,-6714.98335691,0.0002979,3]
[392558307,1761663045676,-8923.80548373,0.0002979,3]
[392558308,1761663045687,-1022.76859083,0.0002979,3]
[392558309,1761663045698,-656.39813241,0.0002979,3]
[392558310,1761663045709,-2829.99999998,0.0002979,3]
[392558311,1761663045720,-11474.9275252,0.0002979,3]
[392558312,1761663045740,-1203.605075,0.0002979,3]
[392558313,1761663045963,-906.93647639,0.0002979,3]
[392558314,1761663045980,-18561.54005176,0.0002979,3]
[392558315,1761663045991,-224.1246753,0.0002979,2]
[392558316,1761663046004,-152.03,0.0002979,2]
[392558317,1761663046020,-500.0,0.00029799,3]
[392558318,1761663046031,-500.0,0.00029799,3]
[392558319,1761663046043,-512.13243822,0.00029799,3]
[392558320,1761663046053,-500.0,0.00029799,3]
[392558321,1761663046062,-500.0,0.00029799,3]
[392558322,1761663046072,-500.0,0.00029799,3]
[392558323,1761663046082,-500.0,0.00029799,3]
[392558324,1761663046092,-891.8528,0.000298,2]
[392558325,1761663046102,-252.6314,0.000298,2]
[392558326,1761663046112,-90875.68863472,0.000298,2]
[392558331,1761663048059,150.5,0.00030537,120]
[392558333,1761663080847,183.0,0.000315,120]
[392558334,1761663081732,547.0,0.000315,120]
[392558460,1761663791703,300.32,0.00031507,120]
[392558476,1761663963128,195.0,0.00029483,120]
[392558479,1761664009120,-150.0,0.00026803,2]
[392558480,1761664009140,-26.74325385,0.00026803,2]
[392558484,1761664040739,220.61,0.00013699,2]
[392558485,1761664051090,-220.61,0.00020187,2]
[392558486,1761664051112,-64.75657457,0.00026676,2]
[392558494,1761664148074,-155.85342543,0.00026676,2]
[392558495,1761664148099,-286.90992144,0.00026703,60]
[392558496,1761664148121,-123.25674615,0.00026803,2]
[392558497,1761664148142,-150.0,0.00026803,2]
[392558498,1761664148163,-150.0,0.00026803,2]
[392558499,1761664148184,-150.0,0.00026803,2]
[392558500,1761664148204,-150.0,0.00026803,2]
[392558501,1761664148224,-150.0,0.00026803,2]
[392558502,1761664148245,-150.0,0.00026803,2]
[392558503,1761664148266,-150.0,0.00026803,2]
[392558516,1761664185513,985.59,0.0002852,120]
[392558532,1761664231762,-2809.0,0.000272,3]
[392558533,1761664231772,-150.0,0.00027547,7]
[392558534,1761664231782,-5515.0,0.000278,5]
[392558535,1761664231791,-1200.0,0.00028099,2]
[392558536,1761664231801,-150.0,0.00028292,7]
[392558537,1761664231811,-281.57254416,0.00028399,2]
[392558538,1761664231821,-500.0,0.00028399,2]
[392558539,1761664231831,-805.98,0.00028581,2]
[392558540,1761664231841,-8683.55374304,0.000287,3]
[392558542,1761664232096,-1257.65691688,0.000287,3]
[392558613,1761664243058,-500.0,0.00028098,2]
[392558614,1761664243068,-8.29668132,0.00028681,3]
[392558616,1761664243211,-186.59129807,0.00028681,3]
[392558622,1761664245770,-320.88329651,0.00028098,2]
[392558623,1761664245781,-471.11202061,0.00028681,3]
[392558624,1761664245791,-342.60468288,0.000287,3]
[392558625,1761664245830,-985.01000029,0.000287,3]
[392558626,1761664245886,-21856.83924,0.000287,3]
[392558627,1761664245938,-922.7852,0.000287,3]
[392558677,1761664597828,165.62,0.00014225,2]
[392558678,1761664598135,165.62,0.00016258,2]
[392558679,1761664598389,165.62,0.0001829,2]
[392558700,1761664708808,-165.62,0.00020322,2]
[392558702,1761664766700,250.0,0.00017,2]
[392558720,1761664848007,150.5,0.00031222,120]
[392558721,1761664918724,177.77020298,0.00020201,2]
[392558722,1761664960301,200.0,0.00031,120]
[392558726,1761664985079,219.0,0.00031,120]
[392558729,1761664998712,334.0,0.00031,120]
[392558730,1761665003689,500.0,0.00030051,120]
[392558761,1761665108317,272418.13868564,0.00015,2]
[392558762,1761665125589,506.98157723,0.000175,2]
[392558763,1761665162319,3746.31497681,8e-05,2]
[392558805,1761665217262,1232.69199574,0.000162,5]
[392558806,1761665228363,1036.16605589,0.00015,2]
[392558808,1761665239123,-151.0,0.00022354,2]
[392558809,1761665239155,-165.62,0.00022354,2]
[392558810,1761665239185,-43.83588474,0.00022902,2]
[392558811,1761665250097,-112.75111526,0.00022902,2]
[392558812,1761665250117,-162.380719,0.0002345,2]
[392558813,1761665250141,-65.39526765,0.00023998,2]
[392558816,1761665269778,4782.61181848,0.0002,4]
[392558817,1761665271391,5368.65239678,0.00018,2]
[392558818,1761665275330,291187.55799056,0.00015,2]
[392558819,1761665275742,150.0,0.00027558,120]
[392558824,1761665292270,304.42822751,0.000125,2]
[392558825,1761665292338,247.56446448,0.000135,2]
[392558828,1761665307827,221.79721972,0.0001,2]
[392558832,1761665311455,409.23512913,0.0002,2]
[392558840,1761665321228,7126.53127868,0.0001,2]
[392558842,1761665324273,3330.22910643,0.00013699,2]
[392558845,1761665346096,-204.64399789,0.00021999,2]
[392558846,1761665346119,-286.05849072,0.00021999,2]
[392558847,1761665346145,-500.0,0.00021999,2]
[392558848,1761665346170,-500.0,0.00021999,2]
[392558849,1761665346194,-500.0,0.00021999,2]
[392558850,1761665346219,-500.0,0.00021999,2]
[392558851,1761665346243,-174.27060539,0.00021999,2]
[392558852,1761665349295,54888.15892753,0.00031507,120]
[392558853,1761665355107,-325.72939461,0.00021999,2]
[392558854,1761665355130,-500.0,0.00021999,2]
[392558855,1761665355154,-630.64768272,0.00021999,2]
[392558856,1761665355176,-60643.77782267,0.00022,4]
[392558857,1761665358099,-3594.24917812,0.00022,4]
[392558858,1761665358124,-88.30260112,0.00023998,2]
[392558859,1761665358146,-165.62,0.00024387,2]
[392558860,1761665358166,-1582.308239,0.00025,7]
[392558861,1761665358187,-227.07271802,0.000257,2]
[392558862,1761665358208,-227.07271802,0.000257,2]
[392558863,1761665358228,-3000.0,0.000257,3]
[392558864,1761665358248,-454.14543604,0.00025707,7]
[392558865,1761665358269,-150.0,0.00026224,2]
[392558866,1761665358289,-5515.0,0.000263,5]
[392558867,1761665358310,-165.62,0.00026419,2]
[392558868,1761665358331,-150.0,0.00026498,2]
[392558869,1761665358351,-4917.07,0.00026591,2]
[392558870,1761665358371,-835.41182001,0.00026591,2]
[392558871,1761665359062,-146.93817999,0.00026591,2]
[392558872,1761665359084,-150.0,0.00026901,2]
[392558873,1761665359106,-150.0,0.00026901,2]
[392558874,1761665359128,-150.0,0.00026901,2]
[392558875,1761665359150,-150.0,0.00026901,2]
[392558897,1761665432041,-166.66,0.00027359,30]
[392558900,1761665432051,-196.67,0.00027451,2]
[392558901,1761665432060,-500.0,0.00027499,2]
[392558902,1761665432070,-727.73494087,0.00027514,2]
[392558903,1761665432082,-274.64,0.00027541,2]
[392558904,1761665432092,-150.0,0.00027558,2]
[392558905,1761665432101,-152.0,0.00027565,3]
[392558906,1761665432110,-196.67,0.00027643,2]
[392558907,1761665432119,-196.67,0.00027835,2]
[392558908,1761665432128,-727.73494087,0.00027856,2]
[392558909,1761665432138,-216.9840127,0.00027922,2]
[392558910,1761665432147,-727.73494087,0.00028027,2]
[392558911,1761665432156,-196.67,0.00028028,2]
[392558912,1761665432165,-182.01,0.00028081,2]
[392558913,1761665432174,-216.9840127,0.00028095,2]
[392558914,1761665432183,-1200.0,0.00028112,2]
[392558915,1761665432192,-300.0,0.00028122,2]
[392558916,1761665432201,-1200.0,0.00028122,2]
[392558917,1761665432211,-3123.9,0.00028123,2]
[392558918,1761665432219,-196.67,0.0002822,2]
[392558919,1761665432229,-216.9840128,0.00028225,2]
[392558920,1761665432238,-1000.0,0.00028229,2]
[392558921,1761665432247,-292.13499486,0.00028292,7]
[392558922,1761665432256,-200.0,0.00028313,2]
[392558923,1761665432265,-727.73494087,0.00028322,2]
[392558924,1761665432274,-368.37,0.00028329,2]
[392558925,1761665432283,-168.67,0.00028329,2]
[392558926,1761665432292,-168.67,0.00028329,2]
[392558927,1761665432301,-168.67,0.00028378,2]
[392558928,1761665432310,-150.0,0.00028396,7]
[392558929,1761665432320,-196.67,0.00028412,2]
[392558930,1761665432336,-200.0,0.00028434,2]
[392558931,1761665432350,-500.0,0.00028434,2]
[392558932,1761665432359,-151.0,0.00028434,2]
[392558933,1761665432370,-500.0,0.00028434,2]
[392558934,1761665432380,-500.0,0.00028434,2]
[392558935,1761665432389,-151.0,0.00028434,2]
[392558936,1761665432398,-500.0,0.00028434,2]
[392558937,1761665432408,-151.0,0.00028434,2]
[392558938,1761665432418,-151.0,0.00028434,2]
[392558939,1761665432427,-500.0,0.00028434,2]
[392558940,1761665432436,-151.0,0.00028434,2]
[392558941,1761665432446,-500.0,0.00028434,2]
[392558942,1761665432455,-151.0,0.00028434,2]
[392558943,1761665432464,-500.0,0.00028434,2]
[392558944,1761665432474,-151.0,0.00028434,2]
[392558945,1761665432483,-500.0,0.00028434,2]
[392558947,1761665432493,-151.0,0.00028434,2]
[392558949,1761665432502,-500.0,0.00028434,2]
[392558951,1761665432519,-200.0,0.00028434,2]
[392558953,1761665432528,-151.0,0.00028434,2]
[392558954,1761665432538,-500.0,0.00028434,2]
[392558955,1761665432548,-151.0,0.00028434,2]
[392558956,1761665432557,-500.0,0.00028434,2]
[392558957,1761665432567,-151.0,0.00028434,2]
[392558958,1761665432579,-500.0,0.00028434,2]
[392558959,1761665432588,-200.0,0.00028434,2]
[392558961,1761665432598,-151.0,0.00028434,2]
[392558963,1761665432608,-151.0,0.00028434,2]
[392558965,1761665432618,-151.0,0.00028434,2]
[392558967,1761665432628,-151.0,0.00028434,2]
[392558969,1761665432638,-151.0,0.00028434,2]
[392558971,1761665432648,-278.09243913,0.00028434,2]
[392558973,1761665432658,-165.62,0.00028451,2]
[392558975,1761665432672,-172.92,0.00028581,2]
[392558976,1761665432681,-151.0,0.00028581,2]
[392558977,1761665432691,-166.66,0.00028586,2]
[392558978,1761665432700,-196.67,0.00028604,2]
[392558979,1761665432711,-1960.53368354,0.000287,3]
[392558980,1761665432721,-640.0,0.00028743,2]
[392558981,1761665432731,-640.0,0.00028743,2]
[392558982,1761665432742,-640.0,0.00028743,2]
[392558983,1761665432754,-640.0,0.00028743,2]
[392558984,1761665432764,-640.0,0.00028743,2]
[392558985,1761665432774,-640.0,0.00028743,2]
[392558986,1761665432785,-640.0,0.00028743,2]
[392558987,1761665432795,-640.0,0.00028743,2]
[392558988,1761665432805,-640.0,0.00028743,2]
[392558989,1761665432814,-640.0,0.00028743,2]
[392558990,1761665432826,-640.0,0.00028743,2]
[392558991,1761665432835,-640.0,0.00028743,2]
[392558992,1761665432845,-640.0,0.00028743,2]
[392558993,1761665432854,-640.0,0.00028743,2]
[392558994,1761665432864,-640.0,0.00028743,2]
[392558995,1761665432874,-640.0,0.00028743,2]
[392558996,1761665432884,-640.0,0.00028743,2]
[392558997,1761665432893,-640.0,0.00028743,2]
[392558998,1761665432903,-640.0,0.00028743,2]
[392558999,1761665432913,-640.0,0.00028743,2]
[392559000,1761665432923,-640.0,0.00028743,2]
[392559001,1761665432932,-640.0,0.00028743,2]
[392559002,1761665432942,-640.0,0.00028743,2]
[392559003,1761665432951,-646.32664732,0.00028743,2]
[392559004,1761665432961,-500.0,0.00028743,2]
[392559005,1761665432970,-150.0,0.00028743,2]
[392559006,1761665432980,-500.0,0.00028743,2]
[392559007,1761665432989,-150.0,0.00028743,2]
[392559008,1761665432999,-150.0,0.00028743,2]
[392559009,1761665433008,-150.0,0.00028743,2]
[392559010,1761665433018,-150.0,0.00028743,2]
[392559011,1761665433027,-150.0,0.00028743,2]
[392559012,1761665433037,-150.0,0.00028743,2]
[392559013,1761665433046,-150.0,0.00028743,2]
[392559014,1761665433056,-155.0559749,0.00028743,2]
[392559015,1761665433065,-500.0,0.00028743,2]
[392559016,1761665433078,-500.0,0.00028743,2]
[392559017,1761665433087,-500.0,0.00028745,7]
[392559018,1761665433097,-1300.0,0.00028745,7]
[392559019,1761665433107,-609.84,0.00028747,14]
[392559020,1761665433116,-575.4321396,0.00028747,2]
[392559021,1761665433126,-151.0,0.00028747,2]
[392559022,1761665433136,-250.0,0.00028747,2]
[392559023,1761665433145,-151.0,0.00028747,2]
[392559024,1761665433154,-250.0,0.00028747,2]
[392559025,1761665433164,-277.69005316,0.00028747,2]
[392559026,1761665433174,-250.0,0.00028747,2]
[392559027,1761665433183,-250.0,0.00028747,2]
[392559028,1761665433192,-322.6107,0.00028747,2]
[392559029,1761665433201,-250.0,0.00028747,2]
[392559030,1761665433211,-250.0,0.00028747,2]
[392559031,1761665433222,-250.0,0.00028747,2]
[392559032,1761665433231,-250.0,0.00028747,2]
[392559033,1761665433241,-500.0,0.00028747,2]
[392559034,1761665433250,-250.0,0.00028747,2]
[392559035,1761665433259,-500.0,0.00028747,2]
[392559036,1761665433268,-250.0,0.00028747,2]
[392559037,1761665433277,-500.0,0.00028747,2]
[392559038,1761665433287,-250.0,0.00028747,2]
[392559039,1761665433296,-574.12855637,0.00028747,2]
[392559040,1761665433306,-500.0,0.00028747,2]
[392559041,1761665433316,-500.0,0.00028747,2]
[392559042,1761665433328,-500.0,0.00028747,2]
[392559043,1761665433338,-500.0,0.00028747,2]
[392559044,1761665433357,-500.0,0.00028747,2]
[392559045,1761665433367,-500.0,0.00028747,2]
[392559046,1761665433378,-500.0,0.00028747,2]
[392559047,1761665433389,-500.0,0.00028747,2]
[392559048,1761665433399,-500.0,0.00028747,2]
[392559049,1761665433410,-500.0,0.00028747,2]
[392559050,1761665433419,-500.0,0.00028747,2]
[392559051,1761665433429,-500.0,0.00028747,2]
[392559052,1761665433438,-500.0,0.00028747,2]
[392559053,1761665433449,-500.0,0.00028747,2]
[392559054,1761665433458,-500.0,0.00028747,2]
[392559055,1761665433468,-250.0,0.00028747,2]
[392559056,1761665433478,-500.0,0.00028747,2]
[392559057,1761665433488,-250.0,0.00028747,2]
[392559058,1761665433498,-286.26650797,0.00028747,2]
[392559059,1761665433508,-500.0,0.00028747,2]
[392559060,1761665433517,-250.0,0.00028747,2]
[392559061,1761665433527,-250.0,0.00028747,2]
[392559062,1761665433537,-500.0,0.00028747,2]
[392559063,1761665433546,-250.0,0.00028747,2]
[392559064,1761665433556,-500.0,0.00028747,2]
[392559065,1761665433565,-250.0,0.00028747,2]
[392559066,1761665433574,-250.0,0.00028747,2]
[392559067,1761665433585,-500.0,0.00028747,2]
[392559068,1761665433594,-250.0,0.00028747,2]
[392559069,1761665433604,-500.0,0.00028747,2]
[392559070,1761665433613,-250.0,0.00028747,2]
[392559071,1761665433623,-500.0,0.00028747,2]
[392559072,1761665433633,-250.0,0.00028747,2]
[392559073,1761665433643,-500.0,0.00028747,2]
[392559074,1761665433652,-250.0,0.00028747,2]
[392559075,1761665433662,-500.0,0.00028747,2]
[392559076,1761665433674,-500.0,0.00028747,2]
[392559077,1761665433685,-250.0,0.00028747,2]
[392559078,1761665433695,-221.18330773,0.00028747,2]
[392559079,1761665433705,-500.0,0.00028747,2]
[392559080,1761665433719,-250.0,0.00028747,2]
[392559081,1761665433728,-500.0,0.00028747,2]
[392559082,1761665433738,-250.0,0.00028747,2]
[392559083,1761665433748,-500.0,0.00028747,2]
[392559084,1761665433758,-250.0,0.00028747,2]
[392559085,1761665433768,-250.0,0.00028747,2]
[392559086,1761665433777,-500.0,0.00028747,2]
[392559087,1761665433787,-250.0,0.00028747,2]
[392559088,1761665433798,-250.0,0.00028747,2]
[392559089,1761665433808,-500.0,0.00028747,2]
[392559090,1761665433818,-250.0,0.00028747,2]
[392559091,1761665433831,-250.0,0.00028747,2]
[392559092,1761665433841,-250.0,0.00028747,2]
[392559093,1761665433851,-481.5672642,0.00028747,2]
[392559094,1761665433861,-250.0,0.00028747,2]
[392559095,1761665433870,-250.0,0.00028747,2]
[392559096,1761665433881,-250.0,0.00028747,2]
[392559097,1761665433891,-250.0,0.00028747,2]
[392559098,1761665433901,-250.0,0.00028747,2]
[392559099,1761665433914,-250.0,0.00028747,2]
[392559100,1761665433924,-250.0,0.00028747,2]
[392559101,1761665433934,-250.0,0.00028747,2]
[392559102,1761665433944,-500.0,0.00028747,2]
[392559103,1761665433953,-250.0,0.00028747,2]
[392559104,1761665433963,-250.0,0.00028747,2]
[392559105,1761665433973,-250.0,0.00028747,2]
[392559106,1761665433982,-500.0,0.00028747,2]
[392559107,1761665433993,-250.0,0.00028747,2]
[392559108,1761665434003,-250.0,0.00028747,2]
[392559109,1761665434013,-250.0,0.00028747,2]
[392559110,1761665434023,-500.0,0.00028747,2]
[392559111,1761665434033,-250.0,0.00028747,2]
[392559112,1761665434045,-250.0,0.00028747,2]
[392559113,1761665434055,-500.0,0.00028747,2]
[392559114,1761665434064,-250.0,0.00028747,2]
[392559115,1761665434074,-250.0,0.00028747,2]
[392559116,1761665434087,-500.0,0.00028747,2]
[392559117,1761665434097,-250.0,0.00028747,2]
[392559118,1761665434109,-250.0,0.00028747,2]
[392559119,1761665434119,-500.0,0.00028747,2]
[392559120,1761665434130,-500.0,0.00028747,2]
[392559121,1761665434139,-250.0,0.00028747,2]
[392559122,1761665434150,-500.0,0.00028747,2]
[392559123,1761665434160,-250.0,0.00028747,2]
[392559124,1761665434169,-500.0,0.00028747,2]
[392559125,1761665434179,-250.0,0.00028747,2]
[392559126,1761665434188,-500.0,0.00028747,2]
[392559127,1761665434199,-500.0,0.00028747,2]
[392559128,1761665434208,-277.35679052,0.00028747,2]
[392559129,1761665434218,-736.89584246,0.0002876,2]
[392559130,1761665434228,-4825.0,0.00028767,7]
[392559131,1761665434237,-250.0,0.00028785,2]
[392559132,1761665434247,-935.97,0.00028789,2]
[392559133,1761665434256,-196.67,0.00028796,2]
[392559134,1761665434266,-166.66,0.00028799,30]
[392559135,1761665434275,-151.0,0.00028877,7]
[392559136,1761665434286,-500.0,0.0002888,2]
[392559137,1761665434295,-200.0,0.0002888,2]
[392559138,1761665434305,-500.0,0.0002888,2]
[392559139,1761665434314,-150.0,0.0002888,2]
[392559140,1761665434323,-200.0,0.0002888,2]
[392559141,1761665434337,-500.0,0.0002888,2]
[392559142,1761665434347,-500.0,0.0002888,2]
[392559143,1761665434356,-200.0,0.00028982,2]
[392559144,1761665434366,-507.86317987,0.00028982,2]
[392559145,1761665434375,-200.0,0.00028982,2]
[392559146,1761665434384,-196.67,0.00028988,2]
[392559147,1761665434394,-17550.89948085,0.00029,2]
[392559148,1761665434691,-1427.00894998,0.00029,2]
[392559149,1761665434703,-251.36896064,0.00029,2]
[392559150,1761665434719,-1878.70467983,0.00029,2]
[392559151,1761665434729,-500.0,0.00029017,2]
[392559152,1761665434739,-500.0,0.00029017,2]
[392559153,1761665434748,-150.0,0.00029017,2]
[392559154,1761665434758,-500.0,0.00029017,2]
[392559155,1761665434768,-500.0,0.00029017,2]
[392559156,1761665434778,-500.0,0.00029019,7]
[392559157,1761665434789,-609.84,0.00029021,14]
[392559158,1761665434798,-500.0,0.00029154,2]
[392559159,1761665434808,-486.52936999,0.00029154,2]
[392559164,1761665438051,-200.2409435,0.00028746,2]
[392559165,1761665438062,-151.0,0.00028747,2]
[392559166,1761665438072,-13.47063001,0.00029154,2]
[392559167,1761665438088,-201.00446989,0.00029154,2]
[392559168,1761665438099,-500.0,0.00029154,2]
[392559169,1761665438108,-500.0,0.00029154,2]
[392559170,1761665438118,-152.0,0.00029177,4]
[392559171,1761665438128,-31.36774953,0.00029181,2]
[392559172,1761665438284,-165.30225047,0.00029181,2]
[392559173,1761665438295,-547.0,0.000292,2]
[392559174,1761665438305,-3376.7891,0.00029273,2]
[392559175,1761665438314,-233.985,0.00029273,2]
[392559176,1761665438325,-500.0,0.00029291,2]
[392559177,1761665438336,-104.53891482,0.00029291,2]
[392559183,1761665440226,-395.46108518,0.00029291,2]
[392559184,1761665440236,-500.0,0.00029291,2]
[392559185,1761665440246,-434.62131358,0.00029291,2]
[392559186,1761665440258,-65.37868642,0.00029291,2]
[392559187,1761665440268,-151.0,0.00029291,2]
[392559188,1761665440277,-5037.03454947,0.00029292,2]
[392559189,1761665440293,-2844.63803654,0.00029292,2]
[392559190,1761665440302,-2500.0,0.00029292,2]
[392559191,1761665440311,-609.84,0.00029295,14]
[392559192,1761665440321,-151.0,0.00029295,2]
[392559193,1761665440332,-595.37131296,0.00029295,2]
[392559194,1761665440341,-162.89945177,0.00029307,15]
[392559195,1761665440351,-478.25322466,0.00029307,2]
[392559196,1761665440360,-571.55,0.00029347,2]
[392559197,1761665440370,-505.45411216,0.0002935,5]
[392559198,1761665440379,-500.0,0.0002937,10]
[392559199,1761665440388,-500.0,0.00029373,5]
[392559200,1761665440398,-500.0,0.00029373,5]
[392559201,1761665440407,-500.0,0.00029373,2]
[392559202,1761665440417,-500.0,0.00029373,5]
[392559203,1761665440426,-500.0,0.00029373,5]
[392559204,1761665440435,-500.0,0.00029373,5]
[392559205,1761665440445,-500.0,0.00029373,5]
[392559206,1761665440454,-500.0,0.00029373,5]
[392559207,1761665440464,-500.0,0.00029373,5]
[392559208,1761665440473,-500.0,0.00029373,2]
[392559209,1761665440483,-196.67,0.00029373,2]
[392559210,1761665440492,-5492.44299647,0.00029382,3]
[392559211,1761665440503,-5492.44299647,0.00029385,3]
[392559212,1761665440512,-989.84,0.00029385,2]
[392559213,1761665440521,-151.0,0.00029389,7]
[392559214,1761665440531,-2708.0182688,0.00029392,2]
[392559215,1761665440540,-3127.2167768,0.00029392,2]
[392559216,1761665440549,-123902.1829441,0.00029392,2]
[392559217,1761665440559,-10140.3461348,0.00029392,2]
[392559218,1761665440568,-1069.3947132,0.00029392,2]
[392559220,1761665440577,-155.46121285,0.00029394,7]
[392559221,1761665440588,-11213.8071056,0.00029395,2]
[392559222,1761665440597,-49431.9869682,0.00029397,3]
[392559223,1761665440606,-989.84,0.00029397,2]
[392559224,1761665440615,-989.84,0.00029397,2]
[392559226,1761665440624,-163.24,0.00029397,2]
[392559227,1761665440633,-95094.5585176,0.00029407,2]
[392559228,1761665440642,-500.0,0.00029428,2]
[392559229,1761665440652,-177.82962255,0.00029428,2]
[392559230,1761665440661,-272.0,0.00029428,2]
[392559231,1761665440673,-400.0,0.000295,10]